Cogmind - Beta 14 *** ADVENTURER MODE // 2024.10.02 @ 15:37:38 Player: Knightshade Result: Self-destructed Performance ------------- Evolutions (1) 500 Regions Visited (3) 600 Robots Destroyed (49) 245 Value Destroyed (1062) 1062 Prototype IDs (6) 120 Alien Tech Used (0) 0 Bonus (-50) -50 TOTAL SCORE: 2477 Bonus ------- Follower Combat Kills 85 Friendly Fire -135 Cogmind --------- Core Integrity 305/400 Matter 280/300 Energy 264/280 System Corruption 5% Temperature Cool (0) Movement Rolling (230) Ox10 Location -9/Materials Parts ------- > --- POWER (1) -------- Cooled Ion Engine > --- PROPULSION (2) --- Wheel Faulty Improved Flight Unit > --- UTILITY (4) ------ Huge Storage Unit Machine Analyzer Medium Armor Plating Medium Armor Plating > --- WEAPON (2) ------- Spread Laser Spread Laser > --- INVENTORY (25) --- Ion Engine Light Nuclear Core Wheel Wheel Wheel Improved Heat Sink Disposable Heat Sink Machine Analyzer Seismic Detector Light Armor Plating Light Armor Plating Hardened Light Armor Plating Hardened Light Armor Plating Trap Extractor (0/4) Trap Extractor (0/4) Trap Extractor (0/4) Trap Extractor (0/4) Spread Laser Improved Medium Laser Improved Medium Laser Beamcaster EMP Blaster EMP Blaster Mini Grenade Launcher Mini Grenade Launcher Peak State ------------ > --- POWER ------------ Cooled Ion Engine > --- PROPULSION ------- Wheel Improved Flight Unit > --- UTILITY ---------- Huge Storage Unit Machine Analyzer Medium Armor Plating Medium Armor Plating > --- WEAPON ----------- Spread Laser Spread Laser > --- INVENTORY -------- Ion Engine Light Nuclear Core Wheel Wheel Wheel Improved Heat Sink Disposable Heat Sink Machine Analyzer Seismic Detector Light Armor Plating Light Armor Plating Hardened Light Armor Plating Hardened Light Armor Plating Trap Extractor Trap Extractor Trap Extractor Trap Extractor Spread Laser Improved Medium Laser Improved Medium Laser Beamcaster EMP Blaster EMP Blaster Mini Grenade Launcher Mini Grenade Launcher [Rating: 24] Favorites ----------- Power Light Ion Engine Engine Light Ion Engine Power Core Light Nuclear Core Propulsion Wheel Treads Light Treads Wheel Wheel Flight Unit Improved Flight Unit Utility Huge Storage Unit Device Improved Heat Sink Storage Huge Storage Unit Processor Machine Analyzer Protection Medium Armor Plating Weapon Spread Laser Energy Gun Spread Laser Build | -11 -10 -10 -9 ------- Run | Yrd Mat Min Mat Slots Evolved 2 | . . . 2 Power . | . . . . Propulsion . | . . . . Utility 2 | . . . 2 Weapon . | . . . . Parts Attached 27 | 6 5 1 15 Power 4 | 1 . . 3 Engine 3 | 1 . . 2 Core 1 | . . . 1 Reactor . | . . . . Propulsion 7 | 2 1 1 3 Treads 2 | 2 . . . Leg . | . . . . Wheel 4 | . 1 1 2 Hover . | . . . . Flight 1 | . . . 1 Utility 10 | 1 2 . 7 Device 1 | . . . 1 Storage 2 | 1 1 . . Processor 1 | . . . 1 Hackware . | . . . . Protection 6 | . 1 . 5 Artifact . | . . . . Weapon 6 | 2 2 . 2 Energy Gun 6 | 2 2 . 2 Energy Cannon . | . . . . Ballistic Gun . | . . . . Ballistic Cannon . | . . . . Launcher . | . . . . Special Weapon . | . . . . Impact Weapon . | . . . . Slashing Weapon . | . . . . Piercing Weapon . | . . . . Special Melee Weapon . | . . . . Unidentified Prototypes 3 | . . . 3 Parts Lost 5 | . . . 5 Power 1 | . . . 1 Propulsion 1 | . . . 1 Utility 3 | . . . 3 Weapon . | . . . . Highest Loss Streak 3 | . . . 3 To Critical Strikes . | . . . . Average Slot Usage (%) 96 | . 90 100 97 Engine 11 | . 14 14 9 Treads 8 | . 15 14 . Wheel 16 | . 12 14 20 Device 2 | . . . 7 Storage 12 | . 14 14 11 Protection 16 | . 4 14 25 Energy Gun 25 | . 28 28 22 Peak Build Rating 24 | 6 13 13 24 Average Rating 14 | 4 9 13 18 On Entrance 8 | . 6 13 13 Naked Turns . | . . . . Heaviest Build 109 | 10 92 92 109 Greatest Support 40 | 40 40 16 20 Greatest Overweight (x) 10 | . 5 9 10 Average Overweight (x) 5 | . 4 6 5 Largest Inventory Capacity 25 | 8 25 25 25 Average Capacity 24 | 6 23 25 25 Most Carried 25 | 4 25 25 25 Average Carried 21 | 1 15 24 23 Final Capacity 25 | 8 25 25 25 Final Carried 25 | 2 25 25 25 Class Distribution -------------------- 100% | Mutant Dominant Class ---------------- Mutant | -10/Materials Mutant | -10/Mines Mutant | -9/Materials Resources | -11 -10 -10 -9 ----------- Run | Yrd Mat Min Mat Matter Collected 440 | 112 198 10 120 Remotely . | . . . . Salvage Created 1274 | 14 380 69 811 Parts 83 | 3 20 6 54 Haulers Intercepted 6 | . 1 . 5 Recyclers Shooed 1 | . . . 1 Parts Field Recycled . | . . . . Retrieved Matter . | . . . . Parts Self-Destructed . | . . . . Prevented . | . . . . Kills | -11 -10 -10 -9 ------- Run | Yrd Mat Min Mat Combat Hostiles Destroyed 35 | . 9 2 24 Guns 32 | . 9 2 21 AOE 3 | . . . 3 Classes Destroyed 8 | 1 5 . 2 Tunneler 1 | 1 . . . Hauler 6 | . 1 . 5 Recycler 1 | . 1 . . Mechanic 2 | . 1 . 1 Watcher 3 | . . . 3 Swarmer 16 | . 6 . 10 Grunt 14 | . 3 2 9 Sentry 5 | . . . 5 Thug 1 | . . . 1 Best Kill Streak 7 | 1 3 2 7 Combat Bots Only 7 | . 3 2 7 Max Kills in Single Turn 3 | 1 2 1 3 Gunslinging 1 | . 1 . 1 Exploded 3 | . . . 3 Melee . | . . . . Uniques/NPCs Destroyed . | . . . . Combat | -11 -10 -10 -9 -------- Run | Yrd Mat Min Mat Hostile Shots Fired 159 | . 27 8 124 Missed 42 | . 7 4 31 Damage Taken 1064 | . 152 49 863 Core 153 | . 32 26 95 Absorbed by Shields . | . . . . Ignored by Resistances 324 | . 49 15 260 Core Remaining (%) 88 | 100 . 76 . Volleys Fired 89 | 1 29 3 56 Largest 2 | 2 2 2 2 Hottest 130 | 80 130 130 130 Shots Fired 173 | 2 58 6 107 Gun 173 | 2 58 6 107 Cannon . | . . . . Launcher . | . . . . Special . | . . . . Kinetic . | . . . . Thermal 173 | 2 58 6 107 Explosive . | . . . . Electromagnetic . | . . . . Robot Hit Streak 21 | 2 12 10 21 Robot Miss Streak 5 | . 4 1 5 Penetration Max . | . . . . Secondary Targets 7 | . 1 . 6 Max Gunslinging Chain 1 | . 1 . 1 Shots Hit Robots 143 | 2 42 6 93 Core Hits 174 | 1 26 12 135 Critical Kills . | . . . . Critical Parts Destroyed . | . . . . Critical Strikes . | . . . . Melee Attacks . | . . . . Impact . | . . . . Slashing . | . . . . Piercing . | . . . . Sneak Attacks . | . . . . Combat Hostiles . | . . . . Follow-up Attacks . | . . . . Damage Inflicted 2512 | 22 507 95 1888 Guns 2136 | 22 507 95 1512 Cannons . | . . . . Explosions 376 | . . . 376 Melee . | . . . . Ramming . | . . . . Kinetic . | . . . . Thermal 2136 | 22 507 95 1512 Explosive 376 | . . . 376 Electromagnetic . | . . . . Impact . | . . . . Slashing . | . . . . Piercing . | . . . . Highest Corruption 5 | . . . 5 Average Corruption 5 | . . . 5 Corruption Purged . | . . . . Corruption Blocked . | . . . . Overload Shots . | . . . . Overflow Damage 103 | . . . 103 Projectiles . | . . . . Explosions 103 | . . . 103 Melee . | . . . . Knockbacks . | . . . . Impact . | . . . . Kinetic . | . . . . Secondary . | . . . . Self-Inflicted Damage 135 | . . . 135 Shots 2 | . . . 2 Rammed . | . . . . Targets Rammed . | . . . . Kicked . | . . . . Crushed . | . . . . Highest Temperature 378 | 18 252 252 378 Average Temperature 105 | 12 59 132 122 Received Heat Transfer 330 | . 57 36 237 Effects 4 | . . . 4 Energy Bleed 1 | . . . 1 Interference 2 | . . . 2 Damage (minor) 1 | . . . 1 Siege Activations . | . . . . Robots Corrupted . | . . . . Combat Hostiles . | . . . . Parts Fried . | . . . . Impact Corruptions . | . . . . Robots Melted . | . . . . Combat Hostiles . | . . . . Parts Melted 6 | . 3 . 3 Heat Transferred 3110 | 50 1030 120 1910 Parts Sabotaged . | . . . . Parts Stolen . | . . . . Parts Stripped . | . . . . Power Chain Reactions . | . . . . Alert | -11 -10 -10 -9 ------- Run | Yrd Mat Min Mat Peak Influence 347 | 5 163 101 347 Initial 2 | . 2 . . Average 101 | 2 64 24 186 Maximum Alert Level 1 | . . . 1 Low Security (%) 78 | 100 100 100 46 Level 1 21 | . . . 53 Level 2 . | . . . . Level 3 . | . . . . Level 4 . | . . . . Level 5 . | . . . . High Security . | . . . . Max Security . | . . . . Squads Dispatched 1 | . 1 . . Investigation 1 | . 1 . . Extermination . | . . . . Reinforcement . | . . . . Assault . | . . . . Garrison . | . . . . Intercept . | . . . . Searches Triggered . | . . . . Construction Impeded . | . . . . Haulers Reinforced . | . . . . Active Scanning Responses . | . . . . Cargo Convoy Interrupts . | . . . . Stealth | -11 -10 -10 -9 --------- Run | Yrd Mat Min Mat Distress Signals 3 | . . . 3 Communications Jammed . | . . . . Distress Signals . | . . . . Times Spotted 52 | . 14 3 35 Peak Tracking Total 7 | . 3 2 7 Tactical Retreats 2 | . 1 . 1 Traps | -11 -10 -10 -9 ------- Run | Yrd Mat Min Mat Traps Triggered 1 | . 1 . . Indirectly . | . . . . Trap Hack Attempts . | . . . . Triggered . | . . . . Disarmed 4 | . 4 . . Reprogrammed . | . . . . Reused . | . . . . Traps Extracted . | . . . . Installed . | . . . . Triggered . | . . . . Machines | -11 -10 -10 -9 ---------- Run | Yrd Mat Min Mat Machines Disabled 5 | . . 1 4 Max in Single Turn 2 | . . . 2 Machines Repaired . | . . . . Machines Dismantled . | . . . . Machines Sabotaged . | . . . . Overloaded Fab Kills . | . . . . Hacking | -11 -10 -10 -9 --------- Run | Yrd Mat Min Mat Machines Accessed 17 | . 9 . 8 Terminals 13 | . 7 . 6 Fabricators . | . . . . Repair Stations . | . . . . Recycling Units 3 | . 2 . 1 Scanalyzers 1 | . . . 1 Garrison Access . | . . . . Total Hacks 51 | . 26 . 25 Successful 29 | . 16 . 13 Failed 22 | . 10 . 12 Catastrophic 3 | . 1 . 2 Database Lockouts . | . . . . Manual 37 | . 20 . 17 Terminals 45 | . 24 . 21 Fabricators . | . . . . Repair Stations . | . . . . Recycling Units 4 | . 2 . 2 Scanalyzers 2 | . . . 2 Garrison Access . | . . . . Terminal Hacks 11 | . 7 . 4 Prototype ID Bank 3 | . 2 . 1 Branch Access Points 1 | . . . 1 Machine Index 1 | . . . 1 Terminal Index 1 | . . . 1 Alert Level 1 | . 1 . . Locate Traps 2 | . 2 . . Disarm Traps 1 | . 1 . . Hauler Manifests 1 | . 1 . . Fabricator Hacks . | . . . . Repair Station Hacks . | . . . . Recycling Unit Hacks 3 | . 2 . 1 Report Inventory 2 | . 2 . . Retrieve Components 1 | . . . 1 Scanalyzer 2 | . . . 2 Insert Component 1 | . . . 1 Analyze 1 | . . . 1 Garrison Access Hacks . | . . . . Unauthorized Hacks 13 | . 7 . 6 Terminals 13 | . 7 . 6 Botnet 12 | . 7 . 5 Operators 1 | . . . 1 Fabricators . | . . . . Repair Stations . | . . . . Recycling Units . | . . . . Scanalyzers . | . . . . Garrison Access . | . . . . Data Cores Recovered . | . . . . Used . | . . . . Hacking Detections 15 | . 7 . 8 Full Trace Events 1 | . 1 . . Feedback Events . | . . . . Feedback Blocked . | . . . . Robot Schematics Acquired . | . . . . Robots Built . | . . . . Authchips . | . . . . Time . | . . . . Total Robot Build Rating . | . . . . Part Schematics Acquired 1 | . . . 1 Parts Built . | . . . . Authchips . | . . . . Time . | . . . . Total Part Build Rating . | . . . . Parts Repaired . | . . . . Time . | . . . . Parts Recycled . | . . . . Recycled Matter . | . . . . Retrieved Matter . | . . . . Retrieved Components 1 | . . . 1 Parts Scanalyzed 1 | . . . 1 Part Schematics Acquired 1 | . . . 1 Parts Damaged . | . . . . Bothacking | -11 -10 -10 -9 ------------ Run | Yrd Mat Min Mat Used RIF Installer . | . . . . Robots Hacked . | . . . . Non-combat . | . . . . Combat . | . . . . Robot Hacks Applied . | . . . . Relay Couplers Released . | . . . . Fabnet Peak Effective % . | . . . . Robots Rewired . | . . . . Allies Hacked . | . . . . Hacks Repelled . | . . . . Allies | -11 -10 -10 -9 -------- Run | Yrd Mat Min Mat Total Allies 3 | . . 3 . Largest Group 2 | . . 2 2 Highest-Rated Group 38 | . . 38 38 Highest-Rated Ally 31 | . . 31 31 Total Orders . | . . . . Ally Attacks 18 | . . 7 11 Total Damage 293 | . . 103 190 Kills 4 | . . 2 2 Allies Corrupted . | . . . . Allies Melted . | . . . . Intel | -11 -10 -10 -9 ------- Run | Yrd Mat Min Mat Robot Analysis Total . | . . . . Derelict Logs Recovered 1 | . . 1 . Drone Launches . | . . . . Drone Recoveries . | . . . . Exploration | -11 -10 -10 -9 ------------- Run | Yrd Mat Min Mat Turns Passed 3915 | 68 1007 1223 1617 Spaces Moved 1945 | 40 466 587 852 Core 11 | 11 . . . Treads 74 | 29 45 . . Legs . | . . . . Wheels 1860 | . 421 587 852 Hover . | . . . . Flight . | . . . . Fastest Speed 50 | 50 160 175 140 Average Speed 174 | 129 173 193 164 Slowest Speed 230 | 160 175 215 230 Overloaded Moves . | . . . . Propulsion Burnouts . | . . . . Robots Hopped . | . . . . Cave-ins Triggered . | . . . . Exploration Rate (%) 64 | 3 97 98 61 Regions Visited 3 Branch Regions 1 Pre-discovered Areas . | . . . . Known Exits Taken . | . . . . Unknown Exits Taken 3 | 1 1 1 . Scrap Searched 1 | . . 1 . Spaces Dug . | . . . . Terrain Destroyed 50 | . . . 50 Melee . | . . . . Projectile . | . . . . AOE 50 | . . . 50 Terrain Rammed . | . . . . Walls Destroyed . | . . . . Machines Disabled . | . . . . Actions | -11 -10 -10 -9 --------- Run | Yrd Mat Min Mat Total 2298 | 54 607 672 965 Wait 171 | . 76 76 19 Move 1942 | 39 465 586 852 Hop . | . . . . Pick Up 54 | 8 28 3 15 Fast Attach . | . . . . Attach 15 | 6 1 . 8 Detach . | . . . . Swap 12 | . 4 1 7 Drop 15 | . 4 3 8 Fire 89 | 1 29 3 56 Melee . | . . . . Ram . | . . . . Kick . | . . . . Crush . | . . . . Escape Stasis . | . . . . Rewire . | . . . . Trap . | . . . . Miscellaneous . | . . . . Route ------- -11/Scrapyard -10/Materials (discovered 4 exits: *Mat x3 / [*Min]) -10/Mines (discovered 2 exits: *Mat x2) -9/Materials (discovered 4 exits: [*Mat x2] / *Min / *Sto) History --------- Turn | Location | Event 4 | -11/Scrapyard | Discovered new exit (range 15) 69 | -11/Scrapyard | Entered Materials 309 | -10/Materials | Build established: Mutant 365 | -10/Materials | Discovered new exit (range 15) 826 | -10/Materials | Discovered new exit (range 10) 866 | -10/Materials | Discovered new exit (range 16) 919 | -10/Materials | Discovered new exit (range 4) 1076 | -10/Materials | Entered Mines 1225 | -10/Mines | Received a Mining Laser from a helpful Derelict 1322 | -10/Mines | Learned location of 1 exit from Materials 1627 | -10/Mines | Discovered new exit (range 9) 1851 | -10/Mines | Discovered new exit (range 5) 2299 | -10/Mines | Entered Materials 2299 | -9/Materials | Accompanied by 2 allies 2299 | -9/Materials | Evolved 2 slots: Utility x2 2300 | -9/Materials | Identified exit to Mines 2304 | -9/Materials | Led the pair of lost Derelicts to an unsafe place 2465 | -9/Materials | Discovered new exit (range 4) 2701 | -9/Materials | Discovered new exit (range 11) 2809 | -9/Materials | Destroyed 7 combat bots 3179 | -9/Materials | Lost 3 parts (1n2u) 3284 | -9/Materials | Identified exit to Storage 3503 | -9/Materials | Discovered new exit (range 9) 3916 | -9/Materials | Self-destructed Last Messages --------------- 03676_ Identified Cld. Ion Engine. 03677_ The unstable cave ceiling collapses. 03682_ Acquired 10 matter. 03683_ The unstable cave ceiling collapses. 03737_ R-06 Scavenger collects Faulty Cld. Ion Engine. 03738_ W-16 Scout destroyed. 03739_ K-01 Serf collects debris. 03740_ The unstable cave ceiling collapses. 03742_ K-01 Serf collects debris. 03742_ R-06 Scavenger collects Lgt. Treads. 03745_ K-01 Serf collects debris. 03745_ W-16 Scout destroyed. 03745_ R-06 Scavenger collects Lgt. Treads. 03748_ K-01 Serf collects debris. 03751_ R-06 Scavenger collects Aluminum Leg. 03824_ Acquired Machine Analyzer. 03827_ Dropped Lgt. Treads. 03914_ Acquired Prototype Flight Unit. 03915_ Identified Imp. Flight Unit. 03915_ Faulty integration triggers system corruption (+5). Map ----- +----------------------------------------------------+ | ??????????????????????????????????# ] < #?? | | ??????????????????????????????????# #?? | | ??????????????????????????????????# ###+####?? | | ??????????????????????????????????## ## #?? | | ???????????????????????????????????# ## #?? | | ???????????????????????????????????# ## ### | | ???????????????????????????????????# ## + | | ???????????????????????????????????# ## ### | | ???????????????????????????????????# + #?? | | ???????????????????????????????????# #########?? | | ???????????????????????????????????# #?#####???? | | ???????????????????????????????????# ### ##### | | ????????????????????????????? / | | ???????????????????????????????????### ### | | ?????????????????????????????????????# ## + ##? | | ?????????????????????????????????????# %% #? | | ????????????????????????????????????## # #? | | ????????????????????????????????????# % #? | | ?????????????????????????????????????# #? | | ?????????????????????????????????????### #? | | ????????????????????????##########???# #? | | ????????????????"""?"""?# #???## [#? | | ????????????????"""?"""?# """"" #???# % #? | | ????????????????"""?"""?# """"" ###### #? | | ????????????????????????# """"" # % # ##? | | ????????????????????????#@ """"" + %##### | | ????????????????????????# """"" # | | ??????????????????"""???# """"" # ##### | | ??????????????????"""???# """"" # #???? | | ??????????????????"""???# # ##### | | ????????????????????????########## ![ | | ??????????????????"""????????????# [[ | | ??????????????????"""????????????# #######+## | | ??????????????????"""????????????## ### ## | | ?????????????????????????########## #?# ## | | ?????????????#####???????# # #?# """ ## | | ?????????????#== ######### # #?# """ ## | | ?????????????#== + # #?# """ #### | | ?????????????#!! # # #?# # | | ?????????????#!!= """ ########## ########## | | ?????????????#! """ + # | | ?????????????#!! """ # # | | ?????????????##### """ # # | | ?????????????????# # # " | | ?????????????????# # # " | | ?????????????????##################### # " | | ?????????????????????????????????????# # | | ??????????????????????????????????????############ | | ?????????????????????????????????????????????????? | | | +----------------------------------------------------+ Best States ------------- Heat Dissipation 42 Energy Generation 14 Energy Capacity 280 Matter Stores 300 Matter Capacity 300 Sight Range 16 Terrain Scan Density 10 Armor Coverage 600 Resistance: KI 20 Resistance: TH 20 Resistance: EX 20 Resistance: EM 20 Resistance: I 20 Resistance: S 20 Resistance: P 20 Evasion (%) 50 Recoil Reduction 2 Offensive Hacking 10 Item Schematics ----------------- Machine Analyzer | -9/Materials | Scanalyzed Robot Schematics ------------------ None Fabricated ------------ Nothing Alien Tech Used ----------------- None Achievements -------------- None Challenges ------------ None Game ------ Seed FluxExpertInterpreter Manual? 0 Play Time 00:28:35 Cumulative 93.9 hours Start 2024.10.01 @ 21:10:38 End 2024.10.02 @ 15:37:38 Sessions 3 Manual Loads 0 Difficulty Adventurer Special Mode None Game No. 67 Rogue 0 Adventurer 67 Explorer 0 Win Type - Total 0 Types 0/0/0/0/0/0/0/0/0 Lore% 21 Gallery% 43 Achievement% 36 Wizard Run 0 Options --------- Layout 0 ASCII 0 Keyboard 0 Movement Mouse Keybinds 0 Fullscreen 1 Font 18/SmallcapsGlow Map View 76x50 Zoom Use 0% Tactical HUD 1 Map Filters NONE Filters NONE Steam 1 RUN: f3058d20-bb6f-439f-8d42-d540cf2f6be4